bitfinex-derivatives/quotes_ETHF0:USTF0_20230401
["timestamp","ask_amount","ask_price","bid_price","bid_amount"]
[1680316165514,1.80426696,1829.2,1829.1,1.14195935]
[1680316165914,2.80426696,1829.2,1829.1,1.14195935]
[1680316167016,1.80426696,1829.2,1829.1,1.14195935]
[1680316168119,1.80426696,1829.2,1829.1,1.81986043]
[1680316169721,1.80426696,1829.2,1829.1,1.14195935]
[1680316170334,1.80426696,1829.2,1829.1,1.81986043]
[1680316171725,1.80426696,1829.2,1829.1,1.82006064]
[1680316172023,1.80426696,1829.2,1829.1,1.82006773]
[1680316172525,1.80426696,1829.2,1829.1,0.67790108]
[1680316174925,1.80426696,1829.2,1829.1,2.10503891]
[1680316176125,1.80426696,1829.2,1829.1,0.67790108]
[1680316176314,1.80426696,1829.2,1829.0,2.10503891]
[1680316176518,0.819,1829.1,1828.9,4.2078]
[1680316176722,0.819,1829.1,1829.0,0.67787412]
[1680316177018,0.819,1829.1,1829.0,3.10616281]
[1680316177224,0.819,1829.1,1829.0,2.10616281]
[1680316178727,0.97579412,1829.1,1829.0,2.10616281]
[1680316182428,0.97579412,1829.1,1829.0,3.10616281]
[1680316183029,0.97579412,1829.1,1829.0,2.10616281]
[1680316183928,0.97579412,1829.1,1829.0,0.67787412]
[1680316184128,0.82515651,1829.1,1829.0,1.67787412]
[1680316187135,0.15679412,1829.1,1829.0,1.67787412]
[1680316187636,0.819,1829.2,1829.0,1.67787412]
[1680316187833,0.819,1829.2,1829.1,5.31379889]
[1680316188140,1.39100443,1829.5,1829.1,3.88567412]
[1680316188434,1.39100443,1829.5,1829.3,1.14225996]
[1680316188735,1.39100443,1829.5,1829.3,2.82013408]
[1680316188937,1.39100443,1829.5,1829.3,2.14225996]
[1680316189332,1.39100443,1829.5,1829.4,0.85666301]
[1680316189529,1.39100443,1829.5,1829.3,2.14225996]
[1680316190739,1.39100443,1829.5,1829.3,5.35005996]
[1680316191033,0.819,1829.5,1829.4,2.14225996]
[1680316191432,1.39100443,1829.5,1829.4,1.0]
[1680316191837,0.8591002,1829.7,1829.5,0.572]
[1680316192031,0.57292965,1829.8,1829.6,5.16849056]
[1680316192231,0.57292965,1829.8,1829.7,1.14169056]
[1680316192433,0.8591002,1829.9,1829.7,1.14169056]
[1680316192434,1.38492965,1829.9,1829.7,1.14169056]
[1680316192631,1.38492965,1829.9,1829.8,1.85614416]
[1680316193036,0.812,1829.9,1829.8,2.42644465]
[1680316193836,0.812,1829.9,1829.8,1.42644465]
[1680316194534,0.812,1829.9,1829.8,1.42643615]
[1680316194743,0.812,1829.9,1829.8,0.57029199]
[1680316196636,0.57292965,1830.0,1829.8,1.38929199]
[1680316196835,1.10979921,1830.1,1829.8,1.38929199]
[1680316197234,1.92879921,1830.1,1829.8,0.57029199]
[1680316199145,1.92879921,1830.1,1829.7,3.24143615]
[1680316200345,1.92879921,1830.1,1829.8,0.57029199]
[1680316200838,1.35586956,1830.1,1829.7,3.24143615]
[1680316201437,4.56366956,1830.1,1829.7,2.24143615]
[1680316201746,4.56366956,1830.1,1829.7,0.57029199]
[1680316201747,0.811,1829.8,1829.7,0.57029199]
[1680316202338,0.819,1829.8,1829.7,0.57029199]
[1680316202536,1.0,1829.7,1829.5,0.57029199]
[1680316202742,0.819,1829.6,1829.5,0.57029199]
[1680316207351,1.09,1829.7,1829.5,0.57029199]
[1680316208754,0.07294886,1829.6,1829.5,0.57029199]
[1680316208946,1.09,1829.7,1829.5,0.57029199]
[1680316209556,1.093,1829.8,1829.5,1.42643615]
[1680316209752,1.093,1829.8,1829.6,3.77809199]
[1680316211850,1.093,1829.8,1829.6,0.57029199]
[1680316215658,1.66292965,1830.0,1829.6,4.86309199]
[1680316216550,0.57292965,1830.0,1829.6,1.65529199]
[1680316216766,1.10979921,1830.1,1829.8,1.089]
[1680316217058,0.53686956,1830.1,1829.9,1.0]
[1680316217358,4.87372965,1830.2,1829.8,1.57029199]
[1680316217553,4.87372965,1830.2,1829.8,1.0]
[1680316217755,4.87372965,1830.2,1829.8,4.77809199]
[1680316218159,1.66592965,1830.2,1829.8,4.77809199]
[1680316218349,4.87372965,1830.2,1829.8,4.77809199]
[1680316220160,1.66592965,1830.2,1829.8,4.77809199]
[1680316220964,1.66592965,1830.2,1829.8,3.77809199]
[1680316221157,4.87372965,1830.2,1829.8,3.77809199]
[1680316221661,5.73282985,1830.2,1829.8,3.2078]
[1680316222465,2.52502985,1830.2,1829.8,3.2078]
[1680316222665,1.66592965,1830.2,1829.8,3.77809199]
[1680316223263,2.66592965,1830.2,1829.8,3.77809199]
[1680316223463,1.66592965,1830.2,1829.8,3.77809199]
[1680316224268,4.87372965,1830.2,1829.8,3.77809199]
[1680316224569,0.57292965,1830.1,1829.8,3.77809199]
[1680316224770,1.0,1830.1,1829.8,3.77809199]
[1680316225264,2.66592965,1830.2,1829.8,3.77809199]
[1680316225466,6.73282985,1830.2,1829.8,3.77809199]
[1680316226763,0.57292965,1830.1,1829.8,3.77809199]
[1680316226965,1.57292965,1830.1,1829.8,3.77809199]
[1680316227159,1.085,1830.1,1829.8,3.77809199]
[1680316227560,1.65792965,1830.1,1829.8,3.77809199]
[1680316231777,1.65792965,1830.1,1829.9,0.57029199]
[1680316232368,2.20270389,1830.1,1829.9,0.57029199]
[1680316234673,0.57292965,1830.0,1829.8,1.42643615]
[1680316234973,1.57292965,1830.0,1829.9,0.57029199]
[1680316235178,0.57292965,1830.0,1829.9,0.57029199]
[1680316235378,1.57292965,1830.0,1829.9,0.57029199]
[1680316235770,0.57292965,1830.0,1829.9,0.57029199]
[1680316235969,1.57292965,1830.0,1829.9,0.57029199]
[1680316236172,2.65792965,1830.0,1829.9,0.57029199]
[1680316236367,1.65792965,1830.0,1829.9,0.57029199]
[1680316237471,2.51702985,1830.0,1829.9,0.57029199]
[1680316238473,5.1519002,1830.0,1829.8,0.57029199]
[1680316238777,2.33504957,1829.9,1829.6,0.57029199]
[1680316239073,1.66569955,1829.7,1829.6,0.57029199]
[1680316239270,2.66569955,1829.7,1829.6,0.57029199]
[1680316240167,2.95204933,1829.7,1829.5,1.42643615]
[1680316240373,4.78044117,1829.6,1829.5,0.57029199]
[1680316241776,2.175,1829.5,1829.4,1.42643615]
[1680316242074,2.167,1829.5,1829.4,0.85614416]
[1680316242673,2.167,1829.5,1829.4,1.42675756]
[1680316242875,3.167,1829.5,1829.4,0.5706134]
[1680316245484,3.167,1829.5,1829.2,1.42675756]
[1680316245485,3.73964117,1829.5,1829.2,1.42675756]
[1680316245674,1.093,1829.3,1829.2,1.42675756]
[1680316245882,2.093,1829.3,1829.2,0.5706134]
[1680316246180,1.093,1829.3,1829.2,0.5706134]
[1680316249188,2.093,1829.3,1829.2,0.5706134]
[1680316249678,2.093,1829.3,1829.1,1.42675756]
[1680316249879,1.093,1829.2,1829.1,0.5706134]
[1680316257394,1.093,1829.2,1829.0,0.5706134]
[1680316258496,1.09,1829.1,1828.9,0.5706134]
[1680316258694,1.085,1829.0,1828.9,0.5706134]
[1680316260795,1.24968087,1829.0,1828.9,0.5706134]
[1680316261495,1.24968087,1829.0,1828.8,1.42675756]
[1680316261697,1.24968087,1829.0,1828.9,0.5706134]
[1680316262795,1.24968087,1829.0,1828.8,1.42675756]
[1680316263298,1.24968087,1829.0,1828.9,0.5706134]
[1680316264094,1.24968087,1829.0,1828.8,0.5706134]
[1680316264396,1.24968087,1829.0,1828.8,1.42675756]
[1680316265892,1.24968087,1829.0,1828.8,0.5706134]
[1680316266094,2.093,1828.9,1828.8,0.5706134]
[1680316266292,2.093,1828.9,1828.7,1.42675756]
[1680316266500,1.093,1828.8,1828.7,0.5706134]
[1680316267300,2.186,1828.8,1828.7,0.5706134]
[1680316267703,2.186,1828.8,1828.6,0.5706134]
[1680316267997,1.093,1828.7,1828.6,0.5706134]
[1680316272410,0.814,1828.7,1828.6,0.5706134]
[1680316275900,1.03630494,1828.7,1828.6,0.5706134]
[1680316277709,2.03630494,1828.7,1828.6,0.5706134]
[1680316278514,2.03630494,1828.7,1828.5,1.42675756]
[1680316278808,0.814,1828.6,1828.5,1.42675756]
[1680316279007,0.66331657,1828.6,1828.5,0.85614416]
[1680316279214,0.66331657,1828.6,1828.5,1.42559359]
[1680316279413,0.66331657,1828.6,1828.5,0.85614416]
[1680316283411,3.87111657,1828.6,1828.5,0.85550845]
[1680316283621,4.0278,1828.6,1828.5,0.85550845]
[1680316288220,0.82,1828.6,1828.5,0.85550845]
[1680316289017,0.82,1828.6,1828.5,0.57050168]
[1680316289018,4.0278,1828.6,1828.5,0.57050168]
[1680316289523,1.0,1828.5,1828.4,0.57074325]
[1680316289722,2.627,1828.5,1828.4,0.57074325]
[1680316289917,1.628,1828.5,1828.4,0.57074325]
[1680316290823,1.89417322,1828.5,1828.4,0.57074325]
[1680316291220,1.08017322,1828.5,1828.4,0.57074325]
[1680316291618,1.08017322,1828.5,1828.4,1.57074325]
[1680316293721,1.08017322,1828.5,1828.4,0.57074325]
[1680316293929,4.28797322,1828.5,1828.4,0.57074325]
[1680316294921,4.28797322,1828.5,1828.2,1.14169056]
[1680316294922,1.0,1828.4,1828.1,0.57063452]
[1680316295130,5.6598,1828.2,1828.0,1.42658563]
[1680316295317,0.819,1828.1,1828.0,1.42658563]
[1680316295517,0.813,1828.1,1828.0,0.85595111]
[1680316295721,0.26617322,1828.5,1828.0,1.14169056]
[1680316295915,0.82,1828.4,1828.2,0.57074867]
[1680316296422,0.82,1828.4,1828.3,1.0]
[1680316297230,1.64,1828.4,1828.3,1.0]
[1680316297523,1.64,1828.4,1828.2,1.57074867]
[1680316297720,0.814,1828.3,1828.2,1.57074867]
[1680316299318,0.814,1828.3,1828.2,0.57074867]
[1680316299727,0.814,1828.3,1828.1,2.42687168]
[1680316299929,0.814,1828.3,1828.2,0.57074867]
[1680316300433,0.814,1828.3,1828.1,2.42687168]
[1680316301234,0.814,1828.3,1828.1,0.57074867]
[1680316301529,0.814,1828.3,1828.2,0.57074867]
[1680316301722,0.814,1828.3,1828.1,1.42687168]
[1680316301926,0.814,1828.3,1828.1,0.57074867]
[1680316302326,0.814,1828.3,1828.1,1.42687168]
[1680316302527,0.814,1828.3,1828.1,0.57074867]
[1680316303425,0.814,1828.3,1828.1,1.42687168]
[1680316303725,0.814,1828.3,1828.1,0.57074867]
[1680316303934,0.82,1828.2,1828.1,0.57074867]
[1680316304135,4.8458,1828.2,1828.0,1.42687168]
[1680316304430,4.8458,1828.2,1828.0,0.57074867]
[1680316304431,0.82,1828.1,1828.0,0.57074867]
[1680316305025,0.82,1828.1,1828.0,1.42666842]
[1680316305336,0.82,1828.1,1828.0,0.57054541]
[1680316305929,1.08919317,1828.1,1828.0,0.57054541]
[1680316307032,1.08919317,1828.1,1828.0,1.42666842]
[1680316307228,1.08919317,1828.1,1828.0,0.57054541]
[1680316307437,1.36319317,1828.1,1828.0,0.57054541]
[1680316307636,1.36319317,1828.1,1828.0,1.42666842]
[1680316307930,1.36319317,1828.1,1828.0,0.57054541]
[1680316311833,1.36319317,1828.1,1828.0,0.85612301]
[1680316312134,1.36319317,1828.1,1828.0,1.42661732]
[1680316313638,1.36319317,1828.1,1828.0,0.57049431]
[1680316314041,4.57099317,1828.1,1828.0,0.57049431]
[1680316315637,1.36319317,1828.1,1828.0,0.57049431]
[1680316316941,4.57099317,1828.1,1828.0,0.57049431]
[1680316317240,4.56699317,1828.1,1828.0,0.57049431]
[1680316318442,4.56699317,1828.1,1828.0,1.42661732]
[1680316319033,4.56699317,1828.1,1828.0,0.57049431]
[1680316319234,4.56699317,1828.1,1828.0,1.42661732]
[1680316319933,4.56699317,1828.1,1828.0,0.85612301]
[1680316327238,3.47699317,1828.1,1828.0,1.0]
[1680316327548,1.093,1828.3,1828.1,0.15071926]
[1680316327745,1.093,1828.3,1828.2,0.85635869]
[1680316327936,1.093,1828.3,1828.2,1.85635869]
[1680316328947,0.55669281,1828.4,1828.2,1.85635869]
[1680316329249,4.2978,1828.5,1828.3,0.57107141]
[1680316329846,4.87044117,1828.5,1828.3,0.57107141]
[1680316331339,4.87044117,1828.5,1828.3,1.4274301]
[1680316331850,4.87044117,1828.5,1828.4,0.57107141]
[1680316333849,5.15684933,1828.5,1828.4,0.57107141]
[1680316334152,5.7299896,1828.5,1828.4,0.57107141]
[1680316334449,5.7299894,1828.5,1828.4,0.57107141]
[1680316335051,5.30524085,1828.5,1828.4,0.57107141]
[1680316336746,6.30524085,1828.5,1828.4,0.57107141]
[1680316339254,5.44619152,1828.5,1828.4,0.57107141]
[1680316339551,6.59172465,1828.5,1828.4,0.57107141]
[1680316340643,5.44619152,1828.5,1828.4,0.57107141]
[1680316341750,4.44619152,1828.5,1828.4,0.57107141]
[1680316342157,5.30647902,1828.5,1828.4,0.85635869]
[1680316342352,4.44619152,1828.5,1828.4,0.57224723]
[1680316344059,5.44619152,1828.5,1828.4,0.57224723]
[1680316345061,6.59172465,1828.5,1828.4,0.57224723]
[1680316350971,6.59172465,1828.5,1828.4,0.5618553]
[1680316351172,6.59172465,1828.5,1828.4,0.54971047]
[1680316351374,6.59172465,1828.5,1828.4,0.54033797]
[1680316351572,6.59172465,1828.5,1828.4,0.52900178]
[1680316351968,6.59172465,1828.5,1828.4,0.51744244]
[1680316352163,6.59172465,1828.5,1828.4,0.50672923]
[1680316352367,6.59172465,1828.5,1828.4,0.49587736]
[1680316352564,6.59172465,1828.5,1828.4,0.48489127]
[1680316352767,6.59172465,1828.5,1828.3,0.85635869]
[1680316352965,1.0,1828.3,1828.2,0.85635869]
[1680316353165,6.15824831,1828.3,1828.2,0.85635869]
[1680316353968,6.1582542,1828.3,1828.2,0.85635869]
[1680316354172,5.2978,1828.3,1828.2,0.85635869]
[1680316354377,6.15824252,1828.3,1828.2,0.85635869]
[1680316354676,5.2978,1828.3,1828.2,0.85635869]
[1680316354878,6.15824292,1828.3,1828.2,0.85635869]
[1680316355178,6.15824264,1828.3,1828.2,0.85635869]
[1680316358779,6.36811616,1828.3,1828.2,0.85635869]
[1680316362678,6.36811616,1828.3,1828.1,1.00907795]
[1680316362875,1.66649716,1828.2,1828.1,2.15088954]
[1680316363074,1.66749716,1828.2,1828.1,1.29453085]
[1680316363975,1.66749716,1828.2,1828.1,0.15271926]
[1680316364873,1.66749716,1828.2,1828.1,1.01148396]
[1680316365081,1.66749716,1828.2,1828.1,0.15271926]
[1680316365281,1.66749716,1828.2,1828.1,1.01147178]
[1680316365882,1.83891958,1828.2,1828.1,1.01147178]
[1680316367183,1.83791958,1828.2,1828.1,1.01147178]
[1680316367373,1.56091958,1828.2,1828.1,1.01147178]
[1680316369276,1.56091958,1828.2,1828.1,0.15071926]
[1680316369480,1.56091958,1828.2,1828.1,1.009739]
[1680316381401,2.42136222,1828.2,1828.1,1.009739]
[1680316382105,1.56091958,1828.2,1828.1,1.009739]
[1680316382296,2.42136222,1828.2,1828.1,1.009739]
[1680316382800,1.56091958,1828.2,1828.1,1.009739]
[1680316382998,2.42136222,1828.2,1828.1,1.009739]
[1680316383604,1.84786506,1828.2,1828.1,1.009739]
[1680316387200,2.66686506,1828.2,1828.1,1.009739]
[1680316388704,3.66686506,1828.2,1828.1,1.009739]
[1680316389306,2.80642242,1828.2,1828.1,1.009739]
[1680316389506,3.95195555,1828.2,1828.1,0.15071926]
[1680316412924,2.95195555,1828.2,1828.1,0.15071926]
[1680316413324,4.51226962,1828.2,1828.1,0.15071926]
[1680316414126,3.51226962,1828.2,1828.1,0.15071926]
[1680316414917,2.36673649,1828.2,1828.1,0.15071926]
[1680316416223,3.51226962,1828.2,1828.1,0.15071926]
[1680316416530,2.36673649,1828.2,1828.1,0.15071926]
[1680316417120,3.51226962,1828.2,1828.1,0.15071926]
[1680316418225,2.36673649,1828.2,1828.1,0.15071926]
[1680316418527,3.51226962,1828.2,1828.1,0.15071926]
[1680316423225,16.63900166,1828.2,1828.1,0.15071926]
[1680316423727,16.63901688,1828.2,1828.1,0.15071926]
[1680316424124,15.49348375,1828.2,1828.1,0.15071926]
[1680316424725,15.49348375,1828.2,1828.1,0.14388149]
[1680316425227,16.64084126,1828.2,1828.1,0.14388149]
[1680316425425,15.49348375,1828.2,1828.1,0.14388149]
[1680316425823,16.91313295,1828.2,1828.1,0.14388149]
[1680316429525,15.49348375,1828.2,1828.1,0.14388149]
[1680316429927,16.64093831,1828.2,1828.1,0.14388149]
[1680316430226,15.49348375,1828.2,1828.1,0.14588149]
[1680316430431,16.91313295,1828.2,1828.1,0.14588149]
[1680316430831,15.49348375,1828.2,1828.1,0.14588149]
[1680316431033,16.91313295,1828.2,1828.1,0.14588149]
[1680316447744,18.55156879,1828.2,1828.1,0.14588149]
[1680316455459,18.55156879,1828.2,1828.1,59.83588149]
[1680316456949,18.56592336,1828.2,1828.1,59.83588149]
[1680316457154,17.13191959,1828.2,1828.1,59.83588149]
[1680316457353,25.05891959,1828.2,1828.1,37.57567931]
[1680316457550,27.33419354,1828.2,1828.1,22.43823459]
[1680316457855,27.33419354,1828.2,1828.1,18.38683459]
[1680316458057,25.39906569,1828.2,1828.1,18.38683459]
[1680316458358,28.60686569,1828.2,1828.1,15.17903459]
[1680316458548,30.83718847,1828.2,1828.1,15.17903459]
[1680316459150,32.84203163,1828.2,1828.1,15.17903459]
[1680316459357,32.24670885,1828.2,1828.1,10.83143459]
[1680316460057,32.24670885,1828.2,1828.1,10.79903459]
[1680316460758,32.24670885,1828.2,1828.1,8.65523459]
[1680316460959,32.24670885,1828.2,1828.1,7.03663459]
[1680316462057,5.461,1828.0,1827.3,0.85901974]
[1680316462362,4.8468,1827.4,1827.2,0.85901974]
[1680316462654,0.82,1827.3,1827.2,0.85901974]
[1680316464464,0.82,1827.3,1827.1,0.85901974]
[1680316464862,3.2078,1827.2,1827.1,0.85901974]
[1680316465458,4.8478,1827.2,1827.1,0.85901974]
[1680316467163,0.82,1827.2,1827.1,0.85901974]
[1680316468466,1.12392083,1827.2,1827.0,1.85901974]
[1680316468761,1.11992083,1827.2,1827.0,1.85901974]
[1680316469364,1.11992083,1827.2,1827.1,0.85901974]
[1680316470665,0.30392083,1827.2,1827.1,1.67101974]
[1680316471074,0.819,1827.4,1827.2,0.303]
[1680316471562,0.30392387,1827.3,1827.2,0.303]
[1680316471962,0.819,1827.4,1827.2,0.303]
[1680316472573,0.819,1827.4,1827.2,0.87494645]
[1680316473371,0.819,1827.4,1827.2,0.303]
[1680316474474,4.0268,1827.4,1827.2,0.303]
[1680316477173,0.82,1827.3,1827.2,0.303]
[1680316477677,0.82,1827.3,1827.1,0.57194645]
[1680316479374,3.2078,1827.5,1827.0,1.43096619]
[1680316479375,1.634,1827.2,1827.0,1.43096619]
[1680316479582,0.816,1827.1,1827.0,0.57194645]
[1680316479771,0.82,1827.3,1827.0,0.57194645]
[1680316481285,0.816,1827.1,1827.0,0.57194645]
[1680316481491,0.816,1827.1,1826.9,1.57194645]
[1680316482779,0.82,1827.3,1827.0,1.39194645]
[1680316482980,0.82,1827.3,1827.1,1.0]
[1680316485981,0.34116804,1827.2,1827.1,1.0]
[1680316487187,0.34116804,1827.2,1827.1,1.819]
[1680316487486,0.82,1827.4,1827.1,1.819]
[1680316492183,0.82,1827.4,1827.1,2.39094645]
[1680316495885,0.82,1827.4,1827.2,0.57194645]
[1680316497287,0.82,1827.3,1827.2,0.57194645]
[1680316499896,0.82,1827.3,1827.2,0.85901974]
[1680316502201,1.39231721,1827.3,1827.2,1.14181159]
[1680316503599,1.39231721,1827.3,1827.2,1.82044492]
[1680316506096,1.63831969,1827.3,1827.2,1.82044492]
[1680316506695,0.85847582,1827.4,1827.2,1.82044492]
[1680316506903,0.86015116,1827.8,1827.4,0.15077562]
[1680316507205,0.86015116,1827.8,1827.7,0.86079667]
[1680316507394,0.86011643,1827.8,1827.7,1.86079667]
[1680316507800,1.67711643,1827.8,1827.7,0.86079667]
[1680316508200,1.67711643,1827.8,1827.7,0.57336352]
[1680316511309,0.817,1827.8,1827.7,0.57336352]
[1680316513912,1.43079303,1828.3,1827.8,7.274]
[1680316514106,1.43079303,1828.6,1828.2,0.815]
[1680316514310,0.55976297,1828.6,1828.2,0.815]
[1680316514512,1.43079303,1828.4,1828.3,0.04504728]
[1680316514710,0.816,1828.6,1828.3,0.04504728]
[1680316517210,0.82,1828.5,1828.3,0.04504728]
[1680316517414,1.094,1828.5,1828.3,0.04504728]
[1680316520912,1.094,1828.5,1828.1,3.2078]
[1680316521620,2.18566964,1828.7,1828.3,3.2078]
[1680316521914,4.63859303,1828.9,1828.6,1.094]
[1680316521915,3.2078,1828.9,1828.6,1.094]
[1680316522219,3.2078,1828.9,1828.6,2.094]
[1680316523219,4.86493676,1828.9,1828.6,1.094]
[1680316523615,1.65713676,1828.9,1828.6,2.094]
[1680316523913,1.094,1829.0,1828.6,2.094]
[1680316525413,2.69766577,1829.0,1828.6,2.094]
[1680316525616,1.094,1829.0,1828.6,2.094]
[1680316525818,1.094,1829.0,1828.7,1.0]
[1680316528915,3.2078,1828.9,1828.8,0.08304381]
[1680316529119,3.2078,1828.9,1828.4,2.094]
[1680316529120,4.3018,1828.9,1828.4,2.094]
[1680316529325,4.2948,1828.9,1828.5,1.094]
[1680316530415,3.2078,1828.7,1828.5,1.094]
[1680316531217,4.2948,1828.9,1828.5,1.094]
[1680316531822,3.2078,1828.7,1828.5,1.094]
[1680316533025,4.3018,1828.7,1828.2,1.091]
[1680316533233,3.2078,1828.5,1828.2,1.091]
[1680316537329,3.2078,1828.5,1828.1,1.094]
[1680316540831,3.2078,1828.5,1828.2,1.0]
[1680316541030,1.094,1828.6,1828.2,1.0]
[1680316541934,3.2078,1828.5,1828.2,1.0]
[1680316547130,3.2078,1828.5,1828.2,2.094]
[1680316550737,3.2078,1828.6,1828.2,2.094]
[1680316551237,3.2078,1828.6,1828.2,2.66687814]
[1680316554134,3.2078,1828.6,1828.2,2.094]
[1680316554440,4.34780467,1828.6,1828.2,2.66687814]
[1680316557035,1.14000467,1828.6,1828.2,5.87467814]
[1680316557235,1.14000467,1828.6,1828.4,1.086]
[1680316559442,1.14000467,1828.5,1828.4,1.086]
[1680316562631,2.23400467,1828.5,1828.2,0.57287814]
[1680316562832,3.2078,1828.3,1828.2,0.57287814]
[1680316563037,3.2078,1828.3,1828.1,0.57287814]
[1680316563038,4.35346706,1828.3,1828.1,0.57287814]
[1680316565236,1.084,1828.2,1828.1,0.57287814]
[1680316566141,4.35346706,1828.3,1828.1,0.57287814]
[1680316567138,4.35346706,1828.3,1828.0,1.43219535]
[1680316568447,4.35346706,1828.3,1828.0,0.57287814]
[1680316569840,3.2078,1828.3,1828.1,0.57287814]
[1680316570147,4.35346706,1828.3,1828.0,0.57287814]
[1680316570339,4.35346706,1828.3,1828.0,1.43219535]
[1680316570939,4.35346706,1828.3,1828.0,0.57287814]
[1680316571658,0.04300814,1828.2,1828.0,0.57287814]
[1680316572248,3.2078,1828.1,1828.0,0.57287814]
[1680316572548,0.04300814,1828.2,1828.0,0.57287814]
[1680316573049,3.2078,1828.1,1828.0,0.57287814]
[1680316573248,0.04300814,1828.2,1828.0,0.57287814]
[1680316573443,3.2078,1828.1,1828.0,0.57287814]
[1680316573749,0.04300814,1828.2,1828.0,0.57287814]
[1680316574049,0.90188686,1828.2,1828.0,0.57287814]
[1680316574342,3.2078,1828.1,1828.0,0.57287814]
[1680316574738,3.24565345,1828.1,1828.0,0.57287814]
[1680316574940,5.19153217,1828.1,1827.9,0.57287814]
[1680316575141,1.094,1828.0,1827.9,0.57287814]
[1680316576548,1.95287872,1828.0,1827.9,0.57287814]
[1680316577243,1.094,1828.0,1827.8,1.43219535]
[1680316577448,1.094,1828.0,1827.8,0.57287814]
[1680316577751,1.95287872,1828.0,1827.8,0.57287814]
[1680316578051,1.094,1828.0,1827.8,1.43219535]
[1680316578245,1.95287872,1828.0,1827.9,0.57287814]
[1680316578951,9.07979303,1828.0,1827.4,1.29850452]
[1680316579145,1.087,1827.5,1827.2,0.61736592]
[1680316579344,1.087,1827.5,1827.1,3.82516592]
[1680316579743,1.087,1827.5,1827.1,0.61736592]
[1680316580145,3.2078,1827.4,1827.0,2.094]
[1680316586956,3.2078,1827.4,1827.0,1.094]
[1680316587250,1.087,1827.3,1826.9,7.9745]
[1680316587553,1.087,1827.3,1826.9,3.2078]
[1680316589050,0.20514122,1827.2,1826.9,3.2078]
[1680316593756,1.087,1827.3,1826.9,3.2078]
[1680316594056,0.19488486,1827.2,1826.9,3.2078]
[1680316594964,1.087,1827.3,1826.9,3.2078]
[1680316595348,0.19488643,1827.2,1826.9,3.2078]
[1680316595755,1.087,1827.3,1826.9,3.2078]
[1680316595955,0.1948874,1827.2,1826.9,3.2078]
[1680316596453,0.19488798,1827.1,1826.9,3.2078]
[1680316596853,1.087,1827.3,1827.0,7.1199841]
[1680316597360,0.19488892,1827.2,1827.0,7.1199841]
[1680316598456,0.19488892,1827.2,1827.1,1.0]
[1680316599955,0.19488892,1827.2,1827.0,7.1199841]
[1680316600452,1.084,1827.1,1826.8,1.0]
[1680316601162,1.084,1827.1,1826.9,6.1230498]
[1680316603961,0.19489736,1827.0,1826.9,6.1230498]
[1680316604256,1.084,1827.1,1826.9,6.1230498]
[1680316604462,0.19489799,1827.0,1826.9,6.1230498]
[1680316604863,1.084,1827.1,1826.9,6.1230498]
[1680316605253,0.19489898,1827.0,1826.9,6.1230498]
[1680316609772,4.49669898,1827.0,1826.6,2.1425292]
[1680316610072,1.087,1826.8,1826.5,9.2701292]
[1680316610374,1.087,1826.8,1826.5,3.2078]
[1680316610668,4.3018,1827.0,1826.5,4.2938]
[1680316610869,4.3018,1827.0,1826.6,7.21682383]
[1680316611067,0.27054521,1826.9,1826.6,7.21682383]
[1680316611267,0.27054521,1826.9,1826.7,4.3018]
[1680316611459,1.094,1827.2,1826.7,4.3018]
[1680316611664,1.094,1827.2,1826.8,6.44641212]
[1680316612067,1.094,1827.2,1826.9,1.0]
[1680316613771,1.094,1827.2,1826.8,6.44641212]
[1680316613966,4.3018,1827.2,1826.8,1.0]
[1680316614576,1.094,1827.2,1826.8,1.0]
[1680316614777,4.3018,1827.4,1826.9,1.094]
[1680316614976,4.3018,1827.4,1826.9,10.56858719]
[1680316615276,4.3018,1827.4,1827.0,1.0]
[1680316618877,1.094,1827.4,1827.0,1.0]
[1680316619177,0.19545353,1827.3,1827.0,1.0]
[1680316619477,1.094,1827.4,1827.0,1.0]
[1680316620872,4.3018,1827.4,1827.0,1.0]
[1680316621072,1.094,1827.4,1827.1,3.2078]
[1680316621281,0.54581706,1827.5,1827.3,1.094]
[1680316621579,0.85889002,1827.6,1827.4,1.0]
[1680316622180,0.54741587,1827.6,1827.4,1.0]
[1680316622378,1.94289002,1827.7,1827.4,1.0]
[1680316622777,0.85889002,1827.7,1827.5,1.094]
[1680316623275,0.85889002,1827.6,1827.5,1.094]
[1680316624374,0.85889002,1827.7,1827.5,1.094]
[1680316626281,0.85889002,1827.8,1827.5,1.094]
[1680316626677,0.57245437,1827.7,1827.5,1.094]
[1680316627587,1.43134439,1827.8,1827.6,4.3018]
[1680316627889,0.57245437,1827.8,1827.7,1.0]
[1680316628279,0.57245437,1827.9,1827.7,1.0]
[1680316628579,0.57245437,1827.9,1827.7,6.87463516]
[1680316629485,4.63914439,1828.0,1827.7,6.87463516]
[1680316630084,3.78025437,1828.0,1827.7,6.87463516]
[1680316633083,3.2078,1827.8,1827.7,5.87463516]
[1680316633388,4.87425437,1828.0,1827.7,5.87463516]
[1680316633786,3.2078,1827.8,1827.7,5.87463516]
[1680316635387,3.2078,1827.8,1827.6,6.07954328]
[1680316637389,4.3018,1828.0,1827.6,6.07954328]
[1680316638089,4.87425437,1828.0,1827.6,6.07954328]
[1680316638285,4.3018,1828.0,1827.6,6.07954328]
[1680316639384,3.2078,1828.0,1827.7,2.091]
[1680316641694,3.2078,1828.0,1827.8,1.091]
[1680316647905,0.54606055,1828.1,1827.9,1.086]
[1680316648106,3.78025437,1828.2,1828.0,1.094]
[1680316648304,3.2078,1828.2,1828.0,1.094]
[1680316648504,3.2078,1828.2,1828.1,0.08365073]
[1680316648699,3.75875572,1828.2,1828.1,0.08365073]
[1680316649708,4.85275572,1828.2,1827.7,4.2078]
[1680316649910,5.42521009,1828.2,1827.7,3.2078]
[1680316651505,5.42521009,1828.2,1827.7,3.20144919]
[1680316653312,6.28410011,1828.2,1827.7,3.20144919]
[1680316655214,0.57245437,1828.1,1827.7,3.20144919]
[1680316657215,1.66645437,1828.1,1827.7,3.20144919]
[1680316659408,0.57245437,1828.0,1827.7,3.20144919]
[1680316660413,1.43134439,1828.1,1827.8,2.094]
[1680316660614,0.57245437,1828.1,1828.0,1.094]
[1680316661115,5.19010011,1828.2,1828.0,1.094]
[1680316661416,0.57245437,1828.1,1828.0,1.094]